Cogmind - Beta 10.2 @@@ ROGUE MODE // 2021.11.16 @ 00:37:13 Player: rath Result: Escaped! Performance ------------- Evolutions (9) 4500 Regions Visited (29) 5800 Robots Destroyed (137) 685 Value Destroyed (4060) 4060 Prototype IDs (85) 1700 Alien Tech Used (2) 400 Bonus (9236) 9236 TOTAL SCORE: 26381 Bonus ------- Triggered Max Security 1000 High Alert Combat Kills 349 Follower Combat Kills 507 Aligned with FarCom 300 Met Data Miner 300 Met Imprinter 300 Met Zhirov 300 Met Warlord at Base 500 MAIN.C Attacked Warlord 500 Met Warlord at Research 2000 Scanned by Researcher 500 Win 3000 Friendly Fire -320 Cogmind --------- Core Integrity 1390/1600 Matter 264/300 Energy 256/260 System Corruption 1% Temperature Cool (58) Movement Flying (26) Location To Epsilon Eridani Parts ------- > --- POWER (2) -------- Micro Fission Core Light Quantum Reactor > --- PROPULSION (5) --- Q-thruster Q-thruster Impulse Thruster Array Experimental Q-thruster > --- UTILITY (16) ----- Large Storage Unit Experimental Optical Array Experimental Sensor Array Experimental Signal Interpreter Improved Cloaking Device > --- WEAPON (2) ------- Enhanced Nova Cannon Compact Mass Driver > --- INVENTORY (10) --- Centrium Leg Improved Flight Unit Q-thruster Advanced ECM Suite System Shield Compact HERF Cannon Compact HERF Cannon Peak State ------------ > --- POWER ------------ Micro Fission Core Light Quantum Reactor > --- PROPULSION ------- Cooled VTOL Module Electron Diverter Cooled Impulse Thruster Cooled Impulse Thruster Improved Q-thruster > --- UTILITY ---------- Lightpack 2.0 Advanced Energy Well Experimental Energy Well Experimental Optical Array Experimental Signal Interpreter Improved Stasis Canceller Improved Maneuvering Thrusters Improved Cloaking Device Centrium Light Armor Plating Makeshift Hacking Suite Advanced Hacking Suite Ghost Barrier > --- WEAPON ----------- Compact Mass Driver Axe > --- INVENTORY -------- Improved Flight Unit Field Propulsion Drive Impulse Thruster Array Improved Q-thruster Experimental Q-thruster Experimental Heat Sink Experimental Matter Compressor Experimental Optical Array Experimental Sensor Array Improved Target Analyzer Improved Light Armor Plating Hacking Suite Advanced System Shield Vortex Rail Compact HERF Cannon KE Penetrator Precision Rocket Launcher [Rating: 180] Favorites ----------- Power Micro Fission Core Engine Improved Ion Engine Power Core Micro Fission Core Reactor Light Quantum Reactor Propulsion Improved Flight Unit Treads Light Treads Leg Improved Aluminum Leg Flight Unit Improved Flight Unit Utility Large Storage Unit Device Improved Cloaking Device Storage Large Storage Unit Processor Experimental Optical Array Hackware Makeshift Hacking Suite Protection Improved Light Armor Plating Weapon Assault Rifle Energy Gun Medium Laser Energy Cannon Compact HERF Cannon Ballistic Gun Assault Rifle Ballistic Cannon Compact Mass Driver Launcher Rocket Launcher Slashing Weapon Katana Build | -11 -10 -10 -10 -9 -8 -7 -7 -7 -7 -6 -6 -6 -6 -6 -5 -5 -5 -5 -5 -4 -4 -4 -4 -4 -3 -3 -2 -2 -1 ------- Run | Scr Mat Min Exi Min Mat Fac Low Low Zio Pro Fac Low Low Dat Pro Fac Upp Upp War Pro Fac Upp Upp Zhi Pro Res Res Tes Acc Slots Evolved 18 | . . . . . 4 2 . . . . 2 . . . . 2 . . . . 2 . . . . 2 2 . 2 Power 1 | . . . . . . . . . . . 1 . . . . . . . . . . . . . . . . . . Propulsion 3 | . . . . . 1 1 . . . . . . . . . . . . . . . . . . . 1 . . . Utility 14 | . . . . . 3 1 . . . . 1 . . . . 2 . . . . 2 . . . . 1 2 . 2 Weapon . | . . . . . . . . . . . . . . . . . . . . . . . . . . . . . . Parts Attached 247 | 1 11 4 . 3 53 22 1 2 6 . 16 9 2 . 2 18 . 5 7 1 9 5 6 6 3 21 8 13 13 Power 25 | . 1 . . 1 7 3 . . . . 3 . . . 1 4 . . 1 . . . . 1 1 . . 1 1 Engine 11 | . 1 . . 1 6 1 . . . . . . . . . 1 . . 1 . . . . . . . . . . Core 12 | . . . . . 1 2 . . . . 3 . . . 1 3 . . . . . . . 1 1 . . . . Reactor 2 | . . . . . . . . . . . . . . . . . . . . . . . . . . . . 1 1 Propulsion 52 | . 5 . . 1 16 4 . 1 . . 5 3 1 . . . . . 1 . 1 . . 1 . 2 1 6 4 Treads 2 | . 2 . . . . . . . . . . . . . . . . . . . . . . . . . . . . Leg 21 | . 3 . . 1 15 . . . . . . . . . . . . . . . . . . . . . . . 2 Wheel . | . . . . . . . . . . . . . . . . . . . . . . . . . . . . . . Hover . | . . . . . . . . . . . . . . . . . . . . . . . . . . . . . . Flight 29 | . . . . . 1 4 . 1 . . 5 3 1 . . . . . 1 . 1 . . 1 . 2 1 6 2 Utility 96 | 1 2 . . . 10 4 1 1 6 . 6 2 1 . . 8 . 3 4 1 5 5 4 4 2 10 7 4 5 Device 35 | . . . . . . . 1 . 1 . 2 1 1 . . 2 . 1 2 . 1 1 2 2 1 5 6 2 4 Storage 18 | 1 2 . . . 5 1 . . . . . . . . . 1 . . 1 . 1 . . 1 . 2 1 1 1 Processor 8 | . . . . . 1 . . . 4 . . 1 . . . . . . 1 . . 1 . . . . . . . Hackware 11 | . . . . . . 2 . . . . 4 . . . . 2 . . . . 2 . . . . 1 . . . Protection 24 | . . . . . 4 1 . 1 1 . . . . . . 3 . 2 . 1 1 3 2 1 1 2 . 1 . Artifact . | . . . . . . . . . . . . . . . . . . . . . . . . . . . . . . Weapon 74 | . 3 4 . 1 20 11 . . . . 2 4 . . 1 6 . 2 1 . 3 . 2 . . 9 . 2 3 Energy Gun 8 | . . . . . 3 3 . . . . . . . . . 1 . . . . . . . . . . . 1 . Energy Cannon 4 | . . . . . . . . . . . . . . . . . . . . . . . . . . 1 . . 3 Ballistic Gun 29 | . 3 2 . . 11 2 . . . . 1 2 . . . . . 1 . . 2 . 1 . . 4 . . . Ballistic Cannon 1 | . . . . . . . . . . . . . . . . . . . . . . . . . . . . 1 . Launcher 20 | . . 2 . 1 6 1 . . . . . 2 . . 1 4 . 1 . . . . 1 . . 1 . . . Special Weapon . | . . . . . . . . . . . . . . . . . . . . . . . . . . . . . . Impact Weapon . | . . . . . . . . . . . . . . . . . . . . . . . . . . . . . . Slashing Weapon 12 | . . . . . . 5 . . . . 1 . . . . 1 . . 1 . 1 . . . . 3 . . . Piercing Weapon . | . . . . . . . . . . . . . . . . . . . . . . . . . . . . . . Special Melee Weapon . | . . . . . . . . . . . . . . . . . . . . . . . . . . . . . . Unidentified Prototypes 23 | . . . . . 3 . . . 4 . . . . . . 2 . . 3 . 1 . . 3 . . 2 5 . Parts Lost 62 | . 2 1 . . 10 1 . 1 . . 5 2 . . . 3 . 2 1 . . . 2 . 1 4 . 21 6 Power 8 | . . . . . 2 . . . . . 1 . . . . 2 . . . . . . . . 1 . . 1 1 Propulsion 15 | . 1 . . . 4 . . . . . 3 1 . . . . . . . . . . . . . 1 . 4 1 Utility 28 | . . . . . 3 . . . . . 1 1 . . . 1 . 1 1 . . . 2 . . 2 . 14 2 Weapon 11 | . 1 1 . . 1 1 . 1 . . . . . . . . . 1 . . . . . . . 1 . 2 2 Highest Loss Streak 16 | . 2 1 . . 6 1 . 1 . . 4 2 . . . 3 . 1 1 . . . 2 . 1 3 . 16 5 Average Slot Usage (%) 92 | . 98 100 100 100 97 91 92 86 83 84 89 92 92 86 86 86 88 87 84 88 89 89 88 89 89 91 93 90 53 Engine 5 | . 14 14 14 14 8 5 . . . . . . . . . 2 . . 3 5 5 5 5 1 . . . . . Core 4 | . . . . . . 1 7 7 7 7 12 13 13 13 13 7 11 11 7 5 5 5 5 8 10 9 8 6 4 Leg 11 | . 24 28 28 28 26 . . . . . . . . . . . . . . . . . . . . . . . . Flight 14 | . . . . . . 30 30 30 30 30 25 26 26 26 26 23 23 23 23 23 21 21 21 21 21 23 21 20 15 Device 3 | . . . . . . . 7 7 11 7 . 5 5 6 6 1 5 8 3 5 4 9 8 9 9 8 11 11 7 Storage 15 | . 28 28 28 28 31 7 7 7 7 7 6 6 6 6 6 5 5 5 5 5 5 5 5 8 5 5 7 8 3 Processor 4 | . . . . . . 7 7 7 7 7 6 8 13 13 13 11 11 11 10 5 5 9 10 10 10 9 8 8 8 Hackware 9 | . . . . . . 14 15 7 7 7 23 17 13 13 13 19 17 17 17 17 25 26 15 15 15 18 17 14 . Protection 5 | . . . . . 11 6 . 7 2 7 . . . . . 5 5 2 7 11 10 . 10 6 10 8 8 7 3 Ballistic Gun 8 | . 25 21 14 14 16 7 7 2 . . 6 5 6 . . . . . . . . . . . . 1 4 1 . Launcher 1 | . . 6 14 14 . . . . . . . . . . . . . . . . . . . . . . . . . Slashing Weapon 2 | . . . . . . 6 7 7 7 7 5 6 6 6 6 4 5 4 2 5 4 5 5 5 5 3 4 3 . Naked Turns . | . . . . . . . . . . . . . . . . . . . . . . . . . . . . . . Heaviest Build 75 | 17 40 43 43 45 75 26 19 21 18 18 25 26 22 19 19 37 22 26 22 26 26 25 46 30 31 50 38 50 57 Greatest Support 64 | 20 40 26 26 26 45 24 24 24 18 18 33 27 22 22 22 22 22 26 28 35 28 26 26 30 34 64 46 61 57 Greatest Overweight (x) 3 | . 1 1 1 1 3 1 . . . . . 1 1 . . 1 . . . . . . 1 . . 1 . 1 . Average Overweight (x) . | . . 1 1 1 1 . . . . . . . . . . . . . . . . . . . . . . . . Largest Inventory Capacity 40 | 8 16 16 16 16 26 40 24 24 24 24 24 24 24 24 24 24 24 24 24 24 24 24 24 24 24 24 24 24 10 Average Capacity 21 | 7 13 16 16 16 23 24 24 24 24 24 24 24 24 24 24 24 24 24 24 24 24 24 24 24 24 24 24 23 9 Most Carried 26 | 6 15 15 16 16 26 26 24 23 24 24 24 23 22 23 24 24 24 24 24 23 24 24 24 24 24 24 24 24 10 Average Carried 20 | 6 10 14 15 15 22 19 24 23 23 24 22 22 21 23 23 22 24 23 23 23 23 24 22 23 23 22 23 22 8 Final Capacity 26 | 8 16 16 16 16 26 24 24 24 24 24 24 24 24 24 24 24 24 24 24 24 24 24 24 24 24 24 24 4 10 Final Carried 26 | 6 15 14 16 16 26 24 24 23 24 24 24 21 22 23 24 24 24 22 24 23 24 24 23 24 23 21 24 2 7 Class Distribution -------------------- 22% | Hauler-Mutant 18% | Mutant 16% | Hacker-Sprinter 14% | Hauler-Sprinter 13% | Hacker-Ninja 5% | Hacker-Scout Dominant Class ---------------- Mutant | -10/Materials Mutant | -10/Mines Mutant | -10/Exiles Mutant | -9/Mines Hauler-Mutant | -8/Materials Hauler-Sprinter | -7/Factory Hauler-Sprinter | -7/Lower Caves Hauler-Sprinter | -7/Lower Caves Hauler-Sprinter | -7/Zion Hauler-Sprinter | -6/Proximity Caves Hacker-Sprinter | -6/Factory Hacker-Sprinter | -6/Lower Caves Hacker-Scout | -6/Lower Caves Hacker-Scout | -6/Data Miner Hacker-Scout | -5/Proximity Caves Hacker-Sprinter | -5/Factory Hacker-Scout | -5/Upper Caves Hacker-Ninja | -5/Upper Caves Hacker-Sprinter | -5/Warlord Hacker-Sprinter | -4/Proximity Caves Wizard-Sprinter | -4/Factory Wizard-Ninja | -4/Upper Caves Hacker-Ninja | -4/Upper Caves Hacker-Ninja | -4/Zhirov Hacker-Ninja | -3/Proximity Caves Hacker-Ninja | -3/Research Hacker-Ninja | -2/Research Hacker-Ninja | -2/Testing Scout | -1/Access Resources | -11 -10 -10 -10 -9 -8 -7 -7 -7 -7 -6 -6 -6 -6 -6 -5 -5 -5 -5 -5 -4 -4 -4 -4 -4 -3 -3 -2 -2 -1 ----------- Run | Scr Mat Min Exi Min Mat Fac Low Low Zio Pro Fac Low Low Dat Pro Fac Upp Upp War Pro Fac Upp Upp Zhi Pro Res Res Tes Acc Matter Collected 5087 | 213 170 84 . 182 1447 423 20 2 13 60 222 140 18 . 70 225 . 18 622 10 126 20 49 134 . 402 137 65 215 Remotely 215 | . . . . . . . . . . . . . . . . . . . . . . . . . . . . . 215 Salvage Created 5959 | 75 447 74 . 160 2197 361 . . . 169 183 91 . . 129 405 . . . . 213 72 86 467 . 562 268 . . Parts 318 | 3 32 1 . 14 135 20 . . . 4 6 7 . . 8 21 . . . . 12 1 5 3 . 37 9 . . Haulers Intercepted 16 | . 1 . . . 6 2 . . . . 2 . . . . 1 . . . . 1 . . . . . 3 . . Recyclers Shooed 3 | . 1 . . . 2 . . . . . . . . . . . . . . . . . . . . . . . . Parts Field Recycled . | . . . . . . . . . . . . . . . . . . . . . . . . . . . . . . Retrieved Matter . | . . . . . . . . . . . . . . . . . . . . . . . . . . . . . . Parts Self-Destructed 47 | . . . . . . . . 1 . 2 . 6 . . 4 . . . 30 . . 1 1 2 . . . . . Prevented 13 | . . . . . . . . . . . . 1 . . . . . . 8 . . . 4 . . . . . . Kills | -11 -10 -10 -10 -9 -8 -7 -7 -7 -7 -6 -6 -6 -6 -6 -5 -5 -5 -5 -5 -4 -4 -4 -4 -4 -3 -3 -2 -2 -1 ------- Run | Scr Mat Min Exi Min Mat Fac Low Low Zio Pro Fac Low Low Dat Pro Fac Upp Upp War Pro Fac Upp Upp Zhi Pro Res Res Tes Acc Combat Hostiles Destroyed 98 | . 10 2 . 8 46 6 . . . . . 1 . . 5 8 . . . . 2 . 3 . . 7 . . . Guns 57 | . 10 1 . 4 30 5 . . . . . . . . . . . . . . 2 . . . . 5 . . . AOE 41 | . . 1 . 4 16 1 . . . . . 1 . . 5 8 . . . . . . 3 . . 2 . . . Classes Destroyed 18 | 1 5 2 . 1 6 2 . . . . . . . . . . . . . . . . . . . 1 . . . Worker 5 | . . . . . 4 . . . . . . . . . . . . . . . . . . . . 1 . . . Builder 5 | . 1 . . . 2 1 . . . . . . . . . . . . . . . . . . . 1 . . . Tunneler 1 | . . . . . . . . . . . . . . . . . . . . . . . . . . 1 . . . Hauler 16 | . 1 . . . 6 2 . . . . 2 . . . . 1 . . . . 1 . . . . . 3 . . Recycler 5 | 1 1 1 . . 2 . . . . . . . . . . . . . . . . . . . . . . . . Mechanic 1 | . . . . . 1 . . . . . . . . . . . . . . . . . . . . . . . . Operator 5 | . 3 . . . 1 . . . . . . . . . . 1 . . . . . . . . . . . . . Watcher 2 | . . . . . 2 . . . . . . . . . . . . . . . . . . . . . . . . Swarmer 38 | . 6 . . 4 10 2 . . . . . 1 . . 5 5 . . . . . . 3 . . 2 . . . Grunt 30 | . 4 . . 2 23 1 . . . . . . . . . . . . . . . . . . . . . . . Brawler 1 | . . . . . 1 . . . . . . . . . . . . . . . . . . . . . . . . Duelist 1 | . . . . . 1 . . . . . . . . . . . . . . . . . . . . . . . . Protector 1 | . . . . . 1 . . . . . . . . . . . . . . . . . . . . . . . . Sentry 13 | . . . . 1 10 . . . . . . . . . . . . . . . . . . . . 2 . . . Demolisher 1 | . . 1 . . . . . . . . . . . . . . . . . . . . . . . . . . . Hunter 4 | . . . . . . 1 . . . . . . . . . 3 . . . . . . . . . . . . . Programmer 7 | . . . . . . 2 . . . . . . . . . . . . . . 2 . . . . 3 . . . Assembled 2 | . . 1 . 1 . . . . . . . . . . . . . . . . . . . . . . . . . Thug 1 | . . . . . . . . . . . . 1 . . . . . . . . . . . . . . . . . Best Kill Streak 10 | 1 4 2 . 4 10 3 . . . . 1 1 . . 5 5 . . . . 2 . 3 . . 5 1 . . Combat Bots Only 7 | . 3 1 . 4 7 3 . . . . . 1 . . 5 5 . . . . 2 . 3 . . 2 . . . Max Kills in Single Turn 4 | 1 1 2 . 2 4 2 . . . . 1 1 . . 3 3 . . . . 1 . 2 . . 3 1 . . Gunslinging . | . . . . . . . . . . . . . . . . . . . . . . . . . . . . . . Exploded 4 | . . 1 . 2 4 1 . . . . . 1 . . 3 3 . . . . . . 2 . . 2 . . . Melee . | . . . . . . . . . . . . . . . . . . . . . . . . . . . . . . Uniques/NPCs Destroyed . | . . . . . . . . . . . . . . . . . . . . . . . . . . . . . . Combat | -11 -10 -10 -10 -9 -8 -7 -7 -7 -7 -6 -6 -6 -6 -6 -5 -5 -5 -5 -5 -4 -4 -4 -4 -4 -3 -3 -2 -2 -1 -------- Run | Scr Mat Min Exi Min Mat Fac Low Low Zio Pro Fac Low Low Dat Pro Fac Upp Upp War Pro Fac Upp Upp Zhi Pro Res Res Tes Acc Damage Taken 10456 | . 550 335 . 89 2527 570 16 116 . . 242 166 . . 17 169 . 217 36 69 131 . 240 . 173 1421 72 2358 942 Core 1493 | . 103 56 . 8 258 201 . . . . . . . . . . . 18 . 21 42 . 16 . 24 147 . 389 210 Absorbed by Shields 189 | . . . . . . . . . . . . . . . . . . . . . . . . . . 42 . 147 . Core Remaining (%) 78 | 100 . . . 33 53 . . . . 71 . . . . 100 . . . . 96 . . . . 92 88 . 65 86 Volleys Fired 314 | 1 52 3 . 12 161 22 . . . . 1 2 . . 2 6 . 1 . . 4 . 7 . . 21 . 4 15 Largest 2 | 2 2 2 . 1 2 2 . . . . 1 1 . . 1 2 . 1 . . 2 . 1 . . 2 . 2 2 Hottest 186 | 70 70 40 . 33 63 84 . . . . 25 36 . . 36 92 . 28 . . 68 . 46 . . 129 . 111 186 Shots Fired 566 | 2 101 5 . 12 309 43 . . . . 2 4 . . 2 7 . 1 . . 8 . 7 . . 39 . 6 18 Gun 503 | 2 101 4 . 10 290 42 . . . . 2 1 . . . . . 1 . . 8 . 3 . . 35 . 4 . Cannon 22 | . . . . . . . . . . . . . . . . . . . . . . . . . . 2 . 2 18 Launcher 41 | . . 1 . 2 19 1 . . . . . 3 . . 2 7 . . . . . . 4 . . 2 . . . Special . | . . . . . . . . . . . . . . . . . . . . . . . . . . . . . . Kinetic 481 | 1 86 4 . 10 290 23 . . . . 2 1 . . . . . 1 . . 8 . 3 . . 35 . 2 15 Thermal 36 | 1 15 . . . . 19 . . . . . . . . . . . . . . . . . . . . . . 1 Explosive 22 | . . 1 . 2 19 . . . . . . . . . . . . . . . . . . . . . . . . Electromagnetic 23 | . . . . . . 1 . . . . . 3 . . 2 7 . . . . . . 4 . . 4 . . 2 Entropic 4 | . . . . . . . . . . . . . . . . . . . . . . . . . . . . 4 . Robot Hit Streak 18 | 1 10 6 . 5 15 17 . . . . 18 1 . . . 1 . . . . 4 . 1 . . 9 . . 2 Robot Miss Streak 4 | 1 4 1 . 2 4 1 . . . . 1 . . . . 2 . . . . 1 . 2 . . 4 . . 4 Penetration Max 1 | . . . . . . . . . . . . . . . . . . . . . . . . . . 1 . . . Secondary Targets 2 | . 1 . . . . . . . . . . . . . . . . . . . . . . . . 1 . . . Max Gunslinging Chain 1 | . 1 . . . . . . . . . . . . . . . . . . . . . . . . 1 . . . Shots Hit Robots 396 | 1 57 3 . 8 211 42 . . . 5 7 1 . . . 13 . . . . 7 1 2 8 . 25 4 . 1 Core Hits 256 | 2 26 2 . 11 132 14 . . . 2 3 2 . . 5 13 . . . . 4 1 5 4 . 27 3 . . Critical Hits 16 | . . . . . 1 . . . . . . . . . . 2 . . . . 2 . 1 . . 10 . . . Critical Kills 7 | . . . . . 1 . . . . . . . . . . . . . . . 1 . . . . 5 . . . Critical Parts Destroyed 7 | . . . . . . . . . . . . . . . . 1 . . . . 1 . 1 . . 4 . . . Melee Attacks 204 | . . . . . . 28 . . . 5 38 . . . . 31 2 3 . . 12 1 . 8 . 28 20 28 . Impact . | . . . . . . . . . . . . . . . . . . . . . . . . . . . . . . Slashing 204 | . . . . . . 28 . . . 5 38 . . . . 31 2 3 . . 12 1 . 8 . 28 20 28 . Piercing . | . . . . . . . . . . . . . . . . . . . . . . . . . . . . . . Sneak Attacks 9 | . . . . . . 2 . . . . 2 . . . . 1 . . . . 1 . . . . . 3 . . Combat Hostiles . | . . . . . . . . . . . . . . . . . . . . . . . . . . . . . . Follow-up Attacks . | . . . . . . . . . . . . . . . . . . . . . . . . . . . . . . Damage Inflicted 11695 | 26 620 146 . 366 4647 965 . . . 386 372 141 . . 188 993 . . . . 247 134 283 1128 . 657 351 . 45 Guns 4681 | 26 620 10 . 84 2915 599 . . . . 30 . . . . . . . . . 119 . 16 . . 262 . . . Cannons 62 | . . . . . . . . . . . . . . . . . . . . . . . . . . 17 . . 45 Explosions 3702 | . . 136 . 282 1712 60 . . . . . 141 . . 188 538 . . . . . . 267 . . 378 . . . Melee 3230 | . . . . . . 306 . . . 386 342 . . . . 455 . . . . 128 134 . 1128 . . 351 . . Ramming 20 | . . . . . 20 . . . . . . . . . . . . . . . . . . . . . . . . Kinetic 4290 | 14 522 10 . 84 2915 318 . . . . 30 . . . . . . . . . 119 . 16 . . 262 . . . Thermal 501 | 12 98 . . . . 281 . . . . . . . . 49 . . . . . . . . . . 61 . . . Explosive 2130 | . . 136 . 282 1712 . . . . . . . . . . . . . . . . . . . . . . . . Electromagnetic 1524 | . . . . . . 60 . . . . . 141 . . 139 538 . . . . . . 267 . . 334 . . 45 Impact . | . . . . . . . . . . . . . . . . . . . . . . . . . . . . . . Slashing 3230 | . . . . . . 306 . . . 386 342 . . . . 455 . . . . 128 134 . 1128 . . 351 . . Piercing . | . . . . . . . . . . . . . . . . . . . . . . . . . . . . . . Highest Corruption 39 | . . . . . . 1 1 1 1 . 16 16 16 16 16 4 4 4 4 . . . . . . 7 . 39 1 Average Corruption 7 | . . . . . . 1 1 1 1 . 16 16 16 16 16 3 4 4 4 . . . . . . 3 . 4 1 Corruption Purged . | . . . . . . . . . . . . . . . . . . . . . . . . . . . . . . Effects 136 | . . . . . . . . 1 . . 39 25 18 5 15 11 5 5 1 . . . . . . 3 . 8 . Message Errors 13 | . . . . . . . . 1 . . 1 1 3 . 1 2 2 . 1 . . . . . . . . 1 . Matter Fused 25 | . . . . . . . . . . . 10 3 3 1 3 1 1 2 . . . . . . . 1 . . . Heat Flow Errors 19 | . . . . . . . . . . . 6 5 1 . 1 2 1 1 . . . . . . . 2 . . . Energy Discharges 11 | . . . . . . . . . . . 4 2 . . . 2 1 1 . . . . . . . . . 1 . Parts Rejected 1 | . . . . . . . . . . . . . . . . . . . . . . . . . . . . 1 . Data Loss (minor) 6 | . . . . . . . . . . . 1 . . . . 4 . 1 . . . . . . . . . . . Data Loss (major) 2 | . . . . . . . . . . . 1 1 . . . . . . . . . . . . . . . . . Misfires 3 | . . . . . . . . . . . 1 2 . . . . . . . . . . . . . . . . . Alerts 1 | . . . . . . . . . . . . . . . 1 . . . . . . . . . . . . . . Misdirections 44 | . . . . . . . . . . . 9 10 11 4 8 . . . . . . . . . . . . 2 . Targeting Errors 11 | . . . . . . . . . . . 6 1 . . 1 . . . . . . . . . . . . 3 . Overload Shots . | . . . . . . . . . . . . . . . . . . . . . . . . . . . . . . Overflow Damage 752 | . . 16 . 8 1 72 . . . 154 . 7 . . . 71 . . . . . . . 417 . . . . 6 Projectiles . | . . . . . . . . . . . . . . . . . . . . . . . . . . . . . . Explosions 68 | . . 16 . 8 1 . . . . . . 7 . . . 30 . . . . . . . . . . . . 6 Melee 684 | . . . . . . 72 . . . 154 . . . . . 41 . . . . . . . 417 . . . . . Knockbacks . | . . . . . . . . . . . . . . . . . . . . . . . . . . . . . . Impact . | . . . . . . . . . . . . . . . . . . . . . . . . . . . . . . Kinetic . | . . . . . . . . . . . . . . . . . . . . . . . . . . . . . . Secondary . | . . . . . . . . . . . . . . . . . . . . . . . . . . . . . . Self-Inflicted Damage 253 | . . . . 7 64 17 . . . . . 22 . . . 45 . . . . . . 18 . . 3 . . 77 Shots 11 | . . . . 1 3 1 . . . . . 1 . . . 2 . . . . . . 1 . . 1 . . 1 Rammed 1 | . . . . . 1 . . . . . . . . . . . . . . . . . . . . . . . . Targets Rammed 2 | . . . . . 2 . . . . . . . . . . . . . . . . . . . . . . . . Kicked 1 | . . . . . 1 . . . . . . . . . . . . . . . . . . . . . . . . Crushed . | . . . . . . . . . . . . . . . . . . . . . . . . . . . . . . Highest Temperature 336 | 9 72 . . . 218 300 . 4 . . 263 265 . . 152 155 191 292 . 122 18 . 6 . 1 336 . 258 54 Average Temperature 76 | 6 20 . . . 15 91 . 4 . . 97 122 . . 85 62 95 148 . 91 8 . 3 . 1 100 . 92 26 Received Heat Transfer 1517 | . 108 . . 6 981 57 . 36 . . . 24 . . . . . 54 . . 18 . . . 18 63 . 98 54 Effects 1 | . . . . . . . . . . . . . . . . . . . . . . . . . . 1 . . . Matter Decay 1 | . . . . . . . . . . . . . . . . . . . . . . . . . . 1 . . . Siege Activations . | . . . . . . . . . . . . . . . . . . . . . . . . . . . . . . Robots Corrupted . | . . . . . . . . . . . . . . . . . . . . . . . . . . . . . . Combat Hostiles . | . . . . . . . . . . . . . . . . . . . . . . . . . . . . . . Parts Fried 5 | . . . . . . . . . . . . . . . . 4 . . . . . . . . . 1 . . . Impact Corruptions . | . . . . . . . . . . . . . . . . . . . . . . . . . . . . . . Robots Melted . | . . . . . . . . . . . . . . . . . . . . . . . . . . . . . . Combat Hostiles . | . . . . . . . . . . . . . . . . . . . . . . . . . . . . . . Parts Melted 3 | . 1 . . . . 2 . . . . . . . . . . . . . . . . . . . . . . . Heat Transferred 938 | 37 296 . . . . 555 . . . . . . . . . . . . . . . . . . . 50 . . . Parts Sabotaged . | . . . . . . . . . . . . . . . . . . . . . . . . . . . . . . Parts Stolen . | . . . . . . . . . . . . . . . . . . . . . . . . . . . . . . Parts Stripped . | . . . . . . . . . . . . . . . . . . . . . . . . . . . . . . Power Chain Reactions 4 | . . . . . . . . . . . . 2 . . 1 . . . . . . . . . . 1 . . . Missiles Intercepted . | . . . . . . . . . . . . . . . . . . . . . . . . . . . . . . Alert | -11 -10 -10 -10 -9 -8 -7 -7 -7 -7 -6 -6 -6 -6 -6 -5 -5 -5 -5 -5 -4 -4 -4 -4 -4 -3 -3 -2 -2 -1 ------- Run | Scr Mat Min Exi Min Mat Fac Low Low Zio Pro Fac Low Low Dat Pro Fac Upp Upp War Pro Fac Upp Upp Zhi Pro Res Res Tes Acc Peak Influence 2098 | 5 226 30 . 151 815 590 . . . . 547 . . . . 404 . . . . 494 . . . . 658 106 2098 1592 Initial 1209 | . 3 . . . 7 361 . . . . 8 . . . . 86 . . . . . . . . . 9 77 3 1209 Average 331 | 5 69 23 . 68 392 302 . . . . 320 . . . . 242 . . . . 201 . . . . 143 33 1788 1453 Maximum Alert Level 5 | . 1 . . . 3 2 . . . . 2 . . . . 2 . . . . 2 . . . . 2 . 5 4 Low Security (%) 47 | 100 89 100 . 100 20 40 . . . . 36 . . . . 27 . . . . 54 . . . . 81 100 . . Level 1 18 | . 10 . . . 28 24 . . . . 9 . . . . 71 . . . . 11 . . . . 3 . . . Level 2 24 | . . . . . 40 34 . . . . 54 . . . . 1 . . . . 33 . . . . 14 . . . Level 3 3 | . . . . . 11 . . . . . . . . . . . . . . . . . . . . . . . . Level 4 2 | . . . . . . . . . . . . . . . . . . . . . . . . . . . . . 100 Level 5 . | . . . . . . . . . . . . . . . . . . . . . . . . . . . . . . High Security . | . . . . . . . . . . . . . . . . . . . . . . . . . . . . . . Max Security 2 | . . . . . . . . . . . . . . . . . . . . . . . . . . . . 99 . Squads Dispatched 44 | . 2 . . . 7 4 . . . . 5 . . . . 2 . . . . 2 . . . . 8 . 12 2 Investigation 8 | . . . . . 1 3 . . . . 2 . . . . 1 . . . . . . . . . . . . 1 Extermination 7 | . . . . . . 1 . . . . 2 . . . . . . . . . 2 . . . . 2 . . . Reinforcement 8 | . 2 . . . 3 . . . . . 1 . . . . 1 . . . . . . . . . 1 . . . Assault 17 | . . . . . 2 . . . . . . . . . . . . . . . . . . . . 2 . 12 1 Garrison 4 | . . . . . 1 . . . . . . . . . . . . . . . . . . . . 3 . . . Intercept . | . . . . . . . . . . . . . . . . . . . . . . . . . . . . . . Construction Impeded 2 | . . . . . 1 . . . . . . . . . . . . . . . . . . . . 1 . . . Haulers Reinforced 2 | . . . . . . . . . . . 1 . . . . 1 . . . . . . . . . . . . . Stealth | -11 -10 -10 -10 -9 -8 -7 -7 -7 -7 -6 -6 -6 -6 -6 -5 -5 -5 -5 -5 -4 -4 -4 -4 -4 -3 -3 -2 -2 -1 --------- Run | Scr Mat Min Exi Min Mat Fac Low Low Zio Pro Fac Low Low Dat Pro Fac Upp Upp War Pro Fac Upp Upp Zhi Pro Res Res Tes Acc Distress Signals 21 | . 1 . . . 8 . . . . . 1 . . . . . . . . . . . . . . 3 7 . 1 Communications Jammed . | . . . . . . . . . . . . . . . . . . . . . . . . . . . . . . Distress Signals . | . . . . . . . . . . . . . . . . . . . . . . . . . . . . . . Times Spotted 358 | . 27 2 . 6 77 7 3 6 . . 8 2 . . 4 14 . 10 8 3 10 . 4 . 3 58 6 77 23 Peak Tracking Total 30 | . 6 2 . 2 7 3 3 3 . . 3 1 . . 5 5 . 6 4 3 8 . 4 . 3 21 2 30 15 Tactical Retreats 36 | . 1 . . . 6 1 . 2 . . . . . . . 2 . 2 . . . . 1 . 1 9 2 7 2 Traps | -11 -10 -10 -10 -9 -8 -7 -7 -7 -7 -6 -6 -6 -6 -6 -5 -5 -5 -5 -5 -4 -4 -4 -4 -4 -3 -3 -2 -2 -1 ------- Run | Scr Mat Min Exi Min Mat Fac Low Low Zio Pro Fac Low Low Dat Pro Fac Upp Upp War Pro Fac Upp Upp Zhi Pro Res Res Tes Acc Traps Triggered 12 | . . . . . . 4 . . . . . . . . . 3 . . . . . . . . . 4 . 1 . Indirectly 3 | . . . . . . . . . . . . . . . . 3 . . . . . . . . . . . . . Trap Hack Attempts . | . . . . . . . . . . . . . . . . . . . . . . . . . . . . . . Triggered . | . . . . . . . . . . . . . . . . . . . . . . . . . . . . . . Disarmed . | . . . . . . . . . . . . . . . . . . . . . . . . . . . . . . Reprogrammed . | . . . . . . . . . . . . . . . . . . . . . . . . . . . . . . Reused . | . . . . . . . . . . . . . . . . . . . . . . . . . . . . . . Traps Extracted . | . . . . . . . . . . . . . . . . . . . . . . . . . . . . . . Installed . | . . . . . . . . . . . . . . . . . . . . . . . . . . . . . . Triggered 12 | . . . . 1 . . 1 1 . . . . . . . . . . 9 . . . . . . . . . . Machines | -11 -10 -10 -10 -9 -8 -7 -7 -7 -7 -6 -6 -6 -6 -6 -5 -5 -5 -5 -5 -4 -4 -4 -4 -4 -3 -3 -2 -2 -1 ---------- Run | Scr Mat Min Exi Min Mat Fac Low Low Zio Pro Fac Low Low Dat Pro Fac Upp Upp War Pro Fac Upp Upp Zhi Pro Res Res Tes Acc Machines Disabled 12 | . . . . . 3 1 . . . . . . . . . 4 . 1 . . 1 . . . . . . . 2 Max in Single Turn 2 | . . . . . 1 1 . . . . . . . . . 2 . 1 . . 1 . . . . . . . 1 Garrison Access 5 | . . . . . . . . . . . . . . . . 1 . . . . 1 . . . . . 2 . 1 Energy Cycler 1 | . . . . . . . . . . . . . . . . . . . . . . . . . . . . . 1 Machines Sabotaged . | . . . . . . . . . . . . . . . . . . . . . . . . . . . . . . Garrisons Compromised . | . . . . . . . . . . . . . . . . . . . . . . . . . . . . . . Overloaded Fab Kills . | . . . . . . . . . . . . . . . . . . . . . . . . . . . . . . Fab Network Shutdowns 3 | . . . . . . 1 . . . . 1 . . . . . . . . . 1 . . . . . . . . Hacking | -11 -10 -10 -10 -9 -8 -7 -7 -7 -7 -6 -6 -6 -6 -6 -5 -5 -5 -5 -5 -4 -4 -4 -4 -4 -3 -3 -2 -2 -1 --------- Run | Scr Mat Min Exi Min Mat Fac Low Low Zio Pro Fac Low Low Dat Pro Fac Upp Upp War Pro Fac Upp Upp Zhi Pro Res Res Tes Acc Machines Accessed 102 | . 6 . 3 . 13 12 1 . . 1 13 . 1 4 . 10 1 . 7 . 8 1 . 9 . 5 4 . 3 Terminals 42 | . 4 . . . 8 9 . . . 1 5 . . . . 3 . . . . 4 . . . . 4 2 . 2 Fabricators 10 | . . . . . . 3 . . . . 3 . . . . 3 . . . . 1 . . . . . . . . Repair Stations 5 | . 1 . . . 2 . . . . . 2 . . . . . . . . . . . . . . . . . . Recycling Units 6 | . 1 . . . 2 . . . . . 2 . . . . . . . . . 1 . . . . . . . . Scanalyzers 7 | . . . . . 1 . . . . . 1 . . . . 3 . . . . 1 . . . . 1 . . . Garrison Access 5 | . . . . . . . . . . . . . . . . 1 . . . . 1 . . . . . 2 . 1 Total Hacks 357 | . 20 . 3 . 52 39 1 . . 2 46 . 1 30 . 21 1 . 8 . 38 1 . 48 . 29 12 . 5 Successful 276 | . 9 . 3 . 30 23 1 . . 2 38 . 1 30 . 15 1 . 8 . 32 1 . 48 . 23 9 . 2 Failed 81 | . 11 . . . 22 16 . . . . 8 . . . . 6 . . . . 6 . . . . 6 3 . 3 Catastrophic 7 | . . . . . 4 1 . . . . . . . . . . . . . . . . . . . . 1 . 1 Database Lockouts . | . . . . . . . . . . . . . . . . . . . . . . . . . . . . . . Manual 95 | . 6 . 1 . 25 10 . . . . 12 . . . . 5 . . 1 . 14 . . . . 13 7 . 1 Terminals 165 | . 13 . . . 30 31 . . . 2 18 . . . . 8 . . . . 29 . . . . 20 10 . 4 Fabricators 26 | . . . . . . 8 . . . . 9 . . . . 5 . . . . 4 . . . . . . . . Repair Stations 31 | . 5 . . . 11 . . . . . 15 . . . . . . . . . . . . . . . . . . Recycling Units 11 | . 2 . . . 6 . . . . . 2 . . . . . . . . . 1 . . . . . . . . Scanalyzers 25 | . . . . . 5 . . . . . 2 . . . . 6 . . . . 3 . . . . 9 . . . Garrison Access 6 | . . . . . . . . . . . . . . . . 2 . . . . 1 . . . . . 2 . 1 Terminal Hacks 175 | . 5 . 3 . 8 13 1 . . 2 9 . 1 30 . 3 1 . 8 . 22 1 . 48 . 13 6 . 1 Record 69 | . . . 2 . . 1 1 . . 2 1 . . 11 . . . . 7 . 5 . . 36 . . 3 . . Part Schematic 20 | . . . . . . . . . . . 2 . . 9 . 1 . . . . 2 . . 4 . 2 . . . Robot Schematic 8 | . . . . . . . . . . . 1 . . 7 . . . . . . . . . . . . . . . Robot Analysis 6 | . 1 . . . . . . . . . 1 . . . . . . . . . . . . 4 . . . . . Prototype ID Bank 11 | . . . . . 3 . . . . . 1 . . 3 . . . . . . . . . 4 . . . . . Open Door 4 | . . . . . . . . . . . . . 1 . . . 1 . 1 . . 1 . . . . . . . Level Access Points 1 | . . . . . . . . . . . . . . . . . . . . . . . . . . 1 . . . Branch Access Points 4 | . . . . . . 1 . . . . . . . . . . . . . . 1 . . . . 1 1 . . Emergency Access Points 2 | . . . . . . 1 . . . . . . . . . . . . . . . . . . . 1 . . . Terminal Index 2 | . . . . . . 1 . . . . . . . . . . . . . . 1 . . . . . . . . Fabricator Index 2 | . . . . . . 1 . . . . . . . . . . . . . . 1 . . . . . . . . Scanalyzer Index 1 | . . . . . . . . . . . . . . . . . . . . . 1 . . . . . . . . Alert Level 1 | . . . . . . 1 . . . . . . . . . . . . . . . . . . . . . . . Unreport Threat 11 | . . . . . 1 2 . . . . . . . . . 1 . . . . 2 . . . . 4 1 . . Locate Traps 16 | . 1 . . . 2 2 . . . . 3 . . . . . . . . . 3 . . . . 3 1 . 1 Hauler Manifests 5 | . 2 . . . 1 1 . . . . . . . . . . . . . . 1 . . . . . . . . Registered Components 1 | . . . . . . . . . . . . . . . . . . . . . 1 . . . . . . . . Registered Prototypes 2 | . . . . . . 1 . . . . . . . . . . . . . . 1 . . . . . . . . Zone Layout 8 | . 1 . . . 1 1 . . . . . . . . . 1 . . . . 3 . . . . 1 . . . EX-Prototype ID Bank 1 | . . . 1 . . . . . . . . . . . . . . . . . . . . . . . . . . Fabricator Hacks 23 | . . . . . . 7 . . . . 7 . . . . 5 . . . . 4 . . . . . . . . Load Schematic 9 | . . . . . . 2 . . . . 3 . . . . 2 . . . . 2 . . . . . . . . Build 14 | . . . . . . 5 . . . . 4 . . . . 3 . . . . 2 . . . . . . . . Repair Station Hacks 30 | . 4 . . . 11 . . . . . 15 . . . . . . . . . . . . . . . . . . Scan Component 16 | . 2 . . . 6 . . . . . 8 . . . . . . . . . . . . . . . . . . Repair 14 | . 2 . . . 5 . . . . . 7 . . . . . . . . . . . . . . . . . . Recycling Unit Hacks 7 | . . . . . 4 . . . . . 2 . . . . . . . . . 1 . . . . . . . . Report Inventory 4 | . . . . . 2 . . . . . 1 . . . . . . . . . 1 . . . . . . . . Retrieve Components 3 | . . . . . 2 . . . . . 1 . . . . . . . . . . . . . . . . . . Scanalyzer 23 | . . . . . 5 . . . . . 2 . . . . 5 . . . . 3 . . . . 8 . . . Insert Component 13 | . . . . . 2 . . . . . 2 . . . . 2 . . . . 3 . . . . 4 . . . Analyze 10 | . . . . . 3 . . . . . . . . . . 3 . . . . . . . . . 4 . . . Garrison Access Hacks 4 | . . . . . . . . . . . . . . . . 1 . . . . 1 . . . . . 2 . . Seal Access 4 | . . . . . . . . . . . . . . . . 1 . . . . 1 . . . . . 2 . . Unauthorized Hacks 14 | . . . . . 2 3 . . . . 3 . . . . 1 . . . . 1 . . . . 2 1 . 1 Terminals 13 | . . . . . 2 3 . . . . 3 . . . . 1 . . . . 1 . . . . 2 1 . . Assimilate 2 | . . . . . . 1 . . . . 1 . . . . . . . . . . . . . . . . . . Botnet 11 | . . . . . 2 2 . . . . 2 . . . . 1 . . . . 1 . . . . 2 1 . . Fabricators . | . . . . . . . . . . . . . . . . . . . . . . . . . . . . . . Repair Stations . | . . . . . . . . . . . . . . . . . . . . . . . . . . . . . . Recycling Units . | . . . . . . . . . . . . . . . . . . . . . . . . . . . . . . Scanalyzers . | . . . . . . . . . . . . . . . . . . . . . . . . . . . . . . Garrison Access 1 | . . . . . . . . . . . . . . . . . . . . . . . . . . . . . 1 Jam 1 | . . . . . . . . . . . . . . . . . . . . . . . . . . . . . 1 Data Cores Recovered . | . . . . . . . . . . . . . . . . . . . . . . . . . . . . . . Used . | . . . . . . . . . . . . . . . . . . . . . . . . . . . . . . Hacking Detections 66 | . 6 . . . 12 11 . . . 1 12 . . . . 8 . . . . 7 . . . . 5 2 . 2 Full Trace Events 10 | . 2 . . . 3 2 . . . . 2 . . . . 1 . . . . . . . . . . . . . Feedback Events 1 | . . . . . . . . . . . . . . . . 1 . . . . . . . . . . . . . Corruption 1 | . . . . . . . . . . . . . . . . 1 . . . . . . . . . . . . . Feedback Blocked . | . . . . . . . . . . . . . . . . . . . . . . . . . . . . . . Robot Schematics Acquired 8 | . . . . . . . . . . . 1 . . 7 . . . . . . . . . . . . . . . Robots Built 2 | . . . . . . 1 . . . . . . . . . 1 . . . . . . . . . . . . . Matter 372 | . . . . . . 153 . . . . . . . . . 219 . . . . . . . . . . . . . Time 85 | . . . . . . 27 . . . . . . . . . 58 . . . . . . . . . . . . . Total Robot Build Rating 4 | . . . . . . 1 . . . . . . . . . 3 . . . . . . . . . . . . . Part Schematics Acquired 27 | . . . . . 2 . . . . . 2 . . 9 . 3 . . . . 2 . . 4 . 5 . . . Parts Built 11 | . . . . . . 4 . . . . 3 . . . . 2 . . . . 2 . . . . . . . . Matter 2429 | . . . . . . 584 . . . . 756 . . . . 519 . . . . 570 . . . . . . . . Time 818 | . . . . . . 255 . . . . 201 . . . . 210 . . . . 152 . . . . . . . . Total Part Build Rating 46 | . . . . . . 12 . . . . 12 . . . . 12 . . . . 10 . . . . . . . . Parts Repaired 14 | . 2 . . . 5 . . . . . 7 . . . . . . . . . . . . . . . . . . Time 477 | . 58 . . . 172 . . . . . 247 . . . . . . . . . . . . . . . . . . Parts Recycled . | . . . . . . . . . . . . . . . . . . . . . . . . . . . . . . Recycled Matter . | . . . . . . . . . . . . . . . . . . . . . . . . . . . . . . Retrieved Matter . | . . . . . . . . . . . . . . . . . . . . . . . . . . . . . . Retrieved Components 14 | . . . . . 13 . . . . . 1 . . . . . . . . . . . . . . . . . . Parts Scanalyzed 7 | . . . . . 2 . . . . . . . . . . 2 . . . . . . . . . 3 . . . Part Schematics Acquired 7 | . . . . . 2 . . . . . . . . . . 2 . . . . . . . . . 3 . . . Parts Damaged 1 | . . . . . . . . . . . . . . . . . . . . . . . . . . 1 . . . Bothacking | -11 -10 -10 -10 -9 -8 -7 -7 -7 -7 -6 -6 -6 -6 -6 -5 -5 -5 -5 -5 -4 -4 -4 -4 -4 -3 -3 -2 -2 -1 ------------ Run | Scr Mat Min Exi Min Mat Fac Low Low Zio Pro Fac Low Low Dat Pro Fac Upp Upp War Pro Fac Upp Upp Zhi Pro Res Res Tes Acc Used RIF Installer . | . . . . . . . . . . . . . . . . . . . . . . . . . . . . . . Robots Hacked . | . . . . . . . . . . . . . . . . . . . . . . . . . . . . . . Non-combat . | . . . . . . . . . . . . . . . . . . . . . . . . . . . . . . Combat . | . . . . . . . . . . . . . . . . . . . . . . . . . . . . . . Robot Hacks Applied . | . . . . . . . . . . . . . . . . . . . . . . . . . . . . . . Relay Couplers Released 4 | . . . . . . . . . . . . . . . . . . . . . . . . . . . 4 . . Programmers 4 | . . . . . . . . . . . . . . . . . . . . . . . . . . . 4 . . Robots Rewired . | . . . . . . . . . . . . . . . . . . . . . . . . . . . . . . Allies Hacked 1 | . . . . . . . . . . . 1 . . . . . . . . . . . . . . . . . . Hacks Repelled . | . . . . . . . . . . . . . . . . . . . . . . . . . . . . . . Allies | -11 -10 -10 -10 -9 -8 -7 -7 -7 -7 -6 -6 -6 -6 -6 -5 -5 -5 -5 -5 -4 -4 -4 -4 -4 -3 -3 -2 -2 -1 -------- Run | Scr Mat Min Exi Min Mat Fac Low Low Zio Pro Fac Low Low Dat Pro Fac Upp Upp War Pro Fac Upp Upp Zhi Pro Res Res Tes Acc Total Allies 16 | . . . . 3 . 1 . . 9 . 1 . . . 1 1 . . . . . . . . . . . . . Largest Group 9 | . . . . 3 . 1 . . 9 9 9 3 . . 1 1 . . . . . . . . . . . . . Highest-Rated Group 251 | . . . . 40 . 9 . . 251 251 251 94 . . 94 94 . . . . . . . . . . . . . Highest-Rated Ally 94 | . . . . 16 . 9 . . 37 37 37 37 . . 94 94 . . . . . . . . . . . . . Total Orders . | . . . . . . . . . . . . . . . . . . . . . . . . . . . . . . Ally Attacks 118 | . . . . 25 . . . . . . 72 6 . . 1 14 . . . . . . . . . . . . . Total Damage 2010 | . . . . 317 . . . . . . 1195 123 . . . 375 . . . . . . . . . . . . . Kills 19 | . . . . 3 . . . . . . 12 3 . . . 1 . . . . . . . . . . . . . Allies Corrupted . | . . . . . . . . . . . . . . . . . . . . . . . . . . . . . . Allies Melted . | . . . . . . . . . . . . . . . . . . . . . . . . . . . . . . Intel | -11 -10 -10 -10 -9 -8 -7 -7 -7 -7 -6 -6 -6 -6 -6 -5 -5 -5 -5 -5 -4 -4 -4 -4 -4 -3 -3 -2 -2 -1 ------- Run | Scr Mat Min Exi Min Mat Fac Low Low Zio Pro Fac Low Low Dat Pro Fac Upp Upp War Pro Fac Upp Upp Zhi Pro Res Res Tes Acc Robot Analysis Total 6 | . 1 . . . . . . . . . 1 . . . . . . . . . . . . 4 . . . . . Derelict Logs Recovered 10 | . . . . 1 . . 3 . 1 1 . 1 1 . . . . . . . . . 2 . . . . . . Drone Launches . | . . . . . . . . . . . . . . . . . . . . . . . . . . . . . . Drone Recoveries . | . . . . . . . . . . . . . . . . . . . . . . . . . . . . . . Exploration | -11 -10 -10 -10 -9 -8 -7 -7 -7 -7 -6 -6 -6 -6 -6 -5 -5 -5 -5 -5 -4 -4 -4 -4 -4 -3 -3 -2 -2 -1 ------------- Run | Scr Mat Min Exi Min Mat Fac Low Low Zio Pro Fac Low Low Dat Pro Fac Upp Upp War Pro Fac Upp Upp Zhi Pro Res Res Tes Acc Turns Passed 15900 | 18 1291 153 772 710 3655 900 342 103 647 219 1127 287 135 25 136 700 141 293 368 185 371 461 204 209 366 867 571 325 319 Spaces Moved 19724 | 12 715 93 515 423 1659 1370 526 193 905 376 1432 500 462 93 360 1313 516 449 909 432 618 821 233 433 533 1216 1185 715 717 Core . | . . . . . . . . . . . . . . . . . . . . . . . . . . . . . . Treads 64 | . 64 . . . . . . . . . . . . . . . . . . . . . . . . . . . . Legs 3353 | 12 651 93 515 423 1659 . . . . . . . . . . . . . . . . . . . . . . . . Wheels . | . . . . . . . . . . . . . . . . . . . . . . . . . . . . . . Hover . | . . . . . . . . . . . . . . . . . . . . . . . . . . . . . . Flight 16307 | . . . . . . 1370 526 193 905 376 1432 500 462 93 360 1313 516 449 909 432 618 821 233 433 533 1216 1185 715 717 Fastest Speed 11 | 120 120 150 150 150 150 26 26 26 29 29 26 17 26 26 26 26 26 20 26 20 26 26 26 26 23 11 23 14 24 Average Speed 47 | 120 143 150 150 150 159 26 28 26 29 29 26 28 26 26 26 26 26 24 27 25 26 26 26 26 25 23 23 23 24 Slowest Speed 210 | 120 160 150 150 150 210 96 29 29 29 29 26 99 92 26 26 93 26 26 29 26 26 26 94 26 26 93 26 97 26 Overloaded Moves 847 | . . . . . . . . . . . . 29 . . . . . 178 . 30 . . . . 63 380 . 167 . Propulsion Burnouts . | . . . . . . . . . . . . . . . . . . . . . . . . . . . . . . Robots Hopped 81 | . . . . . . 9 1 4 . . . . . . . 11 2 1 3 . 3 2 . . 2 7 8 15 13 Cave-ins Triggered 6 | . . . . . . . . . . . 1 . . . . . . 1 . . . . . . . . . 4 . Teleports 1 | . . . . . . . . . . . . . . . . . . . . . . . . . . . . 1 . Exploration Rate (%) 56 | 3 83 24 92 73 95 28 72 42 85 56 26 59 68 80 59 26 65 64 95 64 15 67 34 63 68 33 33 82 27 Regions Visited 29 Branch Regions 20 Pre-discovered Areas 10 | . . . 1 1 . . 1 . 1 . . . 1 1 . . . . . . . . 1 3 . . . . . Known Exits Taken 22 | . . . . . 1 1 1 1 1 1 1 1 1 1 1 1 1 1 . 1 1 1 1 1 1 1 1 . . Unknown Exits Taken 7 | 1 1 1 1 1 . . . . . . . . . . . . . . 1 . . . . . . . . 1 . Scrap Searched 21 | . . . . 1 . . 2 . 2 1 . 2 2 . 3 . . 1 . 2 . 2 3 . . . . . . Spaces Dug 178 | . . . . . . 23 . . . . 30 . . . . 17 2 3 . . 10 . . . . 27 15 44 7 Terrain Destroyed 333 | . . 3 . 13 117 23 . . . . 30 8 . . 1 17 2 3 . . 10 . . . . 29 15 44 18 Melee 155 | . . . . . . 23 . . . . 30 . . . . 17 2 3 . . 10 . . . . 27 15 28 . Projectile 27 | . . . . . . . . . . . . . . . . . . . . . . . . . . . . 16 11 AOE 151 | . . 3 . 13 117 . . . . . . 8 . . 1 . . . . . . . . . . 2 . . 7 Terrain Rammed . | . . . . . . . . . . . . . . . . . . . . . . . . . . . . . . Walls Destroyed . | . . . . . . . . . . . . . . . . . . . . . . . . . . . . . . Machines Disabled . | . . . . . . . . . . . . . . . . . . . . . . . . . . . . . . Actions | -11 -10 -10 -10 -9 -8 -7 -7 -7 -7 -6 -6 -6 -6 -6 -5 -5 -5 -5 -5 -4 -4 -4 -4 -4 -3 -3 -2 -2 -1 --------- Run | Scr Mat Min Exi Min Mat Fac Low Low Zio Pro Fac Low Low Dat Pro Fac Upp Upp War Pro Fac Upp Upp Zhi Pro Res Res Tes Acc Total 25204 | 13 893 100 515 488 2366 1816 716 238 1290 477 2124 637 474 93 400 1609 517 623 1027 505 798 1061 366 516 758 1708 1439 807 830 Wait 4427 | . 89 1 . 42 419 335 191 48 364 97 623 126 10 . 34 224 2 166 98 73 145 237 118 59 225 372 213 41 75 Move 19542 | 11 714 92 514 422 1658 1351 523 184 904 375 1431 499 461 92 359 1291 511 446 903 431 612 816 232 432 528 1202 1169 687 692 Hop 68 | . . . . . . 9 1 4 . . . . . . . 10 2 1 2 . 2 2 . . 2 6 7 9 11 Pick Up 163 | . 16 . 1 4 38 13 . . 6 . 14 . 1 . 1 12 . . 7 . 8 . 1 4 . 9 9 4 15 Fast Attach 47 | 1 3 . . . 10 1 . . 5 . 2 . 1 . . 3 . . 3 . . . . 3 . 1 4 4 6 Attach 89 | . 2 1 . 1 14 11 . . . . 8 3 . . 1 9 . 3 1 1 3 . 4 1 1 8 3 9 5 Detach 40 | . . . . . 5 6 . . 4 . . 1 . 1 1 7 . 1 3 . 1 . 2 1 . 2 3 . 2 Swap 113 | . 6 3 . 2 29 10 1 2 1 . 6 6 1 . 1 6 . 2 3 . 6 5 2 3 2 12 1 1 2 Drop 123 | . 11 . . 5 30 12 . . 6 . 1 . . . 1 10 . . 7 . 5 . . 5 . 5 10 8 7 Fire 314 | 1 52 3 . 12 161 22 . . . . 1 2 . . 2 6 . 1 . . 4 . 7 . . 21 . 4 15 Melee 204 | . . . . . . 28 . . . 5 38 . . . . 31 2 3 . . 12 1 . 8 . 28 20 28 . Ram 1 | . . . . . 1 . . . . . . . . . . . . . . . . . . . . . . . . Kick 1 | . . . . . 1 . . . . . . . . . . . . . . . . . . . . . . . . Crush . | . . . . . . . . . . . . . . . . . . . . . . . . . . . . . . Escape Stasis 72 | . . . . . . 18 . . . . . . . . . . . . . . . . . . . 42 . 12 . Rewire . | . . . . . . . . . . . . . . . . . . . . . . . . . . . . . . Trap . | . . . . . . . . . . . . . . . . . . . . . . . . . . . . . . Miscellaneous . | . . . . . . . . . . . . . . . . . . . . . . . . . . . . . . Route ------- -11/Scrapyard -10/Materials (discovered 5 exits: [*Mat x3] / [*Min x2]) -10/Mines (discovered 2 exits: [*Mat] / *Exi) -10/Exiles (discovered 2 exits: [*Min x2]) -9/Mines -8/Materials (discovered 3 exits: *Fac x3) -7/Factory (discovered 4 exits: *Fac / Sto / *Low x2) -7/Lower Caves -7/Lower Caves -7/Zion -6/Proximity Caves -6/Factory (discovered 2 exits: *Low / *Ext) -6/Lower Caves -6/Lower Caves (discovered 2 exits: *Fac / *Dat) -6/Data Miner -5/Proximity Caves -5/Factory (discovered 3 exits: *Fac / *Upp x2) -5/Upper Caves -5/Upper Caves -5/Warlord -4/Proximity Caves -4/Factory (discovered 4 exits: *Res / *Upp x2 / Arm) -4/Upper Caves -4/Upper Caves -4/Zhirov -3/Proximity Caves -3/Research (discovered 5 exits: *Res x3 / Qua x2) -2/Research (discovered 2 exits: *Tes x2) -2/Testing -1/Access To Epsilon Eridani History --------- Turn | Location | Event 5 | -11/Scrapyard | Discovered new exit (range 3) 19 | -11/Scrapyard | Entered Materials 125 | -10/Materials | Discovered new exit (range 3) 205 | -10/Materials | Discovered new exit (range 16) 302 | -10/Materials | Build established: Mutant 359 | -10/Materials | Discovered new exit (range 16) 460 | -10/Materials | Discovered new exit (range 14) 763 | -10/Materials | Discovered new exit (range 6) 1198 | -10/Materials | Repaired Imp. Aluminum Leg 1225 | -10/Materials | Repaired Assault Rifle 1310 | -10/Materials | Entered Mines 1311 | -10/Mines | Assembled infested the area 1316 | -10/Mines | Discovered new exit (range 11) 1343 | -10/Mines | Core integrity fell below 50% 1457 | -10/Mines | Deemed a non-threat by the Exiles lab entrance 1457 | -10/Mines | Discovered new exit (range 5) 1463 | -10/Mines | Entered Exiles 1483 | -10/Exiles | Discovered new exit (range 15) 1501 | -10/Exiles | Met 8R-AWN 1526 | -10/Exiles | Met EX-HEX 1583 | -10/Exiles | Met EX-DEC 1592 | -10/Exiles | Learned location of Zion (-7) 1744 | -10/Exiles | Met EX-BIN 1759 | -10/Exiles | Aligned with FarCom system 1760 | -10/Exiles | Given EX-Vault access code 1798 | -10/Exiles | Opened EX-Vault 1808 | -10/Exiles | Found Lightpack 2.0 1842 | -10/Exiles | Warned to stay clear of 0b10 Research branches 1986 | -10/Exiles | Visited The Gauntlet 2222 | -10/Exiles | Discovered new exit (range 11) 2235 | -10/Exiles | Left Exiles lab with Lightpack 2.0 2235 | -10/Exiles | Entered Mines 2280 | -9/Mines | Assisted by bots powering up and referring to "LRC-V3" 2370 | -9/Mines | Excavation squad dispatched 2370 | -9/Mines | A large section of the Mines collapsed 2620 | -9/Mines | Excavation squad dispatched 2870 | -9/Mines | Excavation squad dispatched 2942 | -9/Mines | Discovered new exit (range 3) 2945 | -9/Mines | Entered Materials 2945 | -8/Materials | Evolved 4 slots: Propulsion x1, Utility x3 3243 | -8/Materials | Build established: Hauler-Mutant 3705 | -8/Materials | Destroyed 7 combat bots 4384 | -8/Materials | Lost 6 parts (2p1n2u1w) 5016 | -8/Materials | Discovered new exit (range 7) 5404 | -8/Materials | Discovered new exit (range 13) 5696 | -8/Materials | Discovered new exit (range 10) 5890 | -8/Materials | Repaired Rocket Launcher 6016 | -8/Materials | Repaired Deuterium Engine 6055 | -8/Materials | Repaired Hpw. Shotgun 6081 | -8/Materials | Repaired Med. Storage Unit 6137 | -8/Materials | Repaired Katana 6145 | -8/Materials | First assault squad dispatched 6220 | -8/Materials | Destroyed 7 combat bots 6399 | -8/Materials | Garrison activated, responded to threat 6598 | -8/Materials | Identified exit to Factory 6600 | -8/Materials | Entered Factory 6600 | -7/Factory | Evolved 2 slots: Propulsion x1, Utility x1 6761 | -7/Factory | Identified exit to Storage 6761 | -7/Factory | Identified exit to Lower Caves 6887 | -7/Factory | Fabricated T-07 Excavator? 6900 | -7/Factory | Build established: Hauler-Sprinter 6900 | -7/Factory | Discovered new exit (range 14) 6994 | -7/Factory | Fabricated Hacking Suite (x1) 7233 | -7/Factory | Fabricated Hacking Suite (x1) 7306 | -7/Factory | Fabricated Hacking Suite (x1) 7314 | -7/Factory | Local fabrication network quarantined 7380 | -7/Factory | Fabricated Hacking Suite (x1) 7500 | -7/Factory | Entered Lower Caves 7501 | -7/Lower Caves | Encountered a Warlord checkpoint 7615 | -7/Lower Caves | Learned Factory stockpile data 7655 | -7/Lower Caves | Identified exit to Lower Caves 7842 | -7/Lower Caves | Entered another Lower Caves area 7940 | -7/Lower Caves | Discovered new exit (range 16) 7944 | -7/Lower Caves | Identified exit to Zion 7945 | -7/Lower Caves | Entered Zion 7963 | -7/Zion | Discovered new exit (range 16) 7987 | -7/Zion | System corruption cleaned by Quarantine Array 8018 | -7/Zion | Gained Derelict followers 8034 | -7/Zion | Learned location of Warlord (-5) 8145 | -7/Zion | Gained Derelict followers 8156 | -7/Zion | Found Prototype Processor 8156 | -7/Zion | Identified Exp. Melee Analysis Suite 8171 | -7/Zion | Found Prototype Processor 8171 | -7/Zion | Identified Exp. Armor Integrity Analyzer 8206 | -7/Zion | Given A8's code to call for help 8215 | -7/Zion | Given the Hacking Drone Bay 8216 | -7/Zion | Found Prototype Device 8216 | -7/Zion | Identified Hacking Drone Bay 8230 | -7/Zion | Rebuked by Imprinter 8295 | -7/Zion | Identified exit to Proximity Caves 8592 | -7/Zion | Entered Proximity Caves 8592 | -6/Proximity Caves | Accompanied by 9 allies 8625 | -6/Proximity Caves | Learned Factory interactive machine intel 8718 | -6/Proximity Caves | Discovered new exit (range 15) 8762 | -6/Proximity Caves | Identified exit to Factory 8811 | -6/Proximity Caves | Entered Factory 8811 | -6/Factory | Accompanied by 9 allies 8811 | -6/Factory | Evolved 2 slots: Power x1, Utility x1 8812 | -6/Factory | Identified exit to Extension 8814 | -6/Factory | Loaded intel: 48 interactive machine locations 8934 | -6/Factory | Fabricated Cld. VTOL Module (x1) 9002 | -6/Factory | Fabricated Cld. VTOL Module (x1) 9076 | -6/Factory | Fabricated Cld. VTOL Module (x1) 9149 | -6/Factory | Build established: Hacker-Sprinter 9222 | -6/Factory | Local fabrication network quarantined 9399 | -6/Factory | Crushed by falling debris 9399 | -6/Factory | System corruption reached 10% 9430 | -6/Factory | Lost 4 parts (1p3n) 9471 | -6/Factory | Repaired Imp. Flight Unit? 9499 | -6/Factory | Repaired Imp. Light Armor Plating 9580 | -6/Factory | Discovered new exit (range 2) 9581 | -6/Factory | Identified exit to Lower Caves 9627 | -6/Factory | Repaired Katana 9666 | -6/Factory | Repaired Lgt. Nuclear Core 9733 | -6/Factory | Repaired Imp. Flight Unit 9775 | -6/Factory | Repaired Imp. Light Armor Plating 9814 | -6/Factory | Repaired Imp. Light Armor Plating 9938 | -6/Factory | Entered Lower Caves 9938 | -6/Lower Caves | Accompanied by 3 allies 10169 | -6/Lower Caves | Spotted B-75 Beast 10211 | -6/Lower Caves | Discovered new exit (range 4) 10211 | -6/Lower Caves | Identified exit to Lower Caves 10225 | -6/Lower Caves | Entered another Lower Caves area 10230 | -6/Lower Caves | Encountered a Warlord checkpoint 10231 | -6/Lower Caves | Discovered new exit (range 21) 10240 | -6/Lower Caves | Identified exit to Factory 10324 | -6/Lower Caves | Discovered new exit (range 10) 10360 | -6/Lower Caves | Identified exit to Data Miner 10360 | -6/Lower Caves | Entered Data Miner 10361 | -6/Data Miner | Discovered new exit (range 7) 10364 | -6/Data Miner | Met Data Miner 10371 | -6/Data Miner | Learned location of Section 7 (-3) 10371 | -6/Data Miner | Acquired the access code to Warlord's prototype stash 10376 | -6/Data Miner | Received God Mode back door access code from Data Miner 10385 | -6/Data Miner | Identified exit to Proximity Caves 10385 | -6/Data Miner | Entered Proximity Caves 10418 | -5/Proximity Caves | Escorted by Enhanced Grunt 10482 | -5/Proximity Caves | Discovered exit to Factory (range 21) 10521 | -5/Proximity Caves | Entered Factory 10521 | -5/Factory | Accompanied by 1 ally 10521 | -5/Factory | Evolved 2 slots: Utility x2 10649 | -5/Factory | Found Tesla Bomb Launcher 10653 | -5/Factory | Found Tesla Bomb Launcher 10700 | -5/Factory | Fabricated Lgt. Regenerative Plating (x1) 10710 | -5/Factory | Lost 3 parts (2p1u) 10864 | -5/Factory | Discovered new exit (range 22) 10993 | -5/Factory | Discovered new exit (range 4) 10993 | -5/Factory | Identified exit to Factory 11047 | -5/Factory | Fabricated M-28 Smith? 11124 | -5/Factory | Discovered new exit (range 14) 11137 | -5/Factory | Found Imp. Powered Armor 11142 | -5/Factory | Identified exit to Upper Caves 11159 | -5/Factory | Incoming investigation squad redirected 11210 | -5/Factory | Fabricated Imp. Cloaking Device (x1) 11221 | -5/Factory | Entered Upper Caves 11272 | -5/Upper Caves | Encountered a Warlord checkpoint 11335 | -5/Upper Caves | Discovered new exit (range 18) 11339 | -5/Upper Caves | Identified exit to Upper Caves 11362 | -5/Upper Caves | Entered another Upper Caves area 11605 | -5/Upper Caves | Crushed by falling debris 11648 | -5/Upper Caves | Discovered new exit (range 12) 11654 | -5/Upper Caves | Attacked by a delusional Derelict stockpiling parts 11655 | -5/Upper Caves | Identified exit to Warlord 11655 | -5/Upper Caves | Entered Warlord 11663 | -5/Warlord | Discovered new exit (range 9) 11688 | -5/Warlord | System corruption cleaned by Quarantine Array 11728 | -5/Warlord | Visited the Vortex Lab 11728 | -5/Warlord | Found Prototype Energy Gun 11747 | -5/Warlord | Warlord's base attacked by MAIN.C 11769 | -5/Warlord | Found Signal Generator 11770 | -5/Warlord | Found Signal Generator 11774 | -5/Warlord | Met Warlord 11779 | -5/Warlord | Opened Warlord's prototype stash 11790 | -5/Warlord | Found Prototype Processor 11792 | -5/Warlord | Found Prototype Hackware 11795 | -5/Warlord | Identified Exp. Target Analyzer 11882 | -5/Warlord | Spotted B-86 Titan 12011 | -5/Warlord | Warlord forces counterattacked 12023 | -5/Warlord | Entered Proximity Caves 12132 | -4/Proximity Caves | Spotted B-86 Titan 12200 | -4/Proximity Caves | Discovered exit to Factory (range 12) 12208 | -4/Proximity Caves | Entered Factory 12208 | -4/Factory | Evolved 2 slots: Utility x2 12209 | -4/Factory | Identified Ghost Barrier 12214 | -4/Factory | Identified exit to Upper Caves 12214 | -4/Factory | Identified exit to Armory 12264 | -4/Factory | Identified Vortex Rail 12393 | -4/Factory | Fabricated Exp. Sensor Array (x1) 12412 | -4/Factory | Local fabrication network quarantined 12470 | -4/Factory | Fabricated Exp. Signal Interpreter (x1) 12546 | -4/Factory | Discovered new exit (range 12) 12579 | -4/Factory | Entered Upper Caves 12887 | -4/Upper Caves | Build established: Wizard-Ninja 12976 | -4/Upper Caves | Discovered new exit (range 5) 12978 | -4/Upper Caves | Identified exit to Upper Caves 13040 | -4/Upper Caves | Entered another Upper Caves area 13087 | -4/Upper Caves | Learned location of Quarantine (-3) 13094 | -4/Upper Caves | Learned Research terminal intel 13241 | -4/Upper Caves | Discovered new exit (range 9) 13243 | -4/Upper Caves | Identified exit to Zhirov 13244 | -4/Upper Caves | Entered Zhirov 13244 | -4/Zhirov | Discovered new exit (range 4) 13245 | -4/Zhirov | Identified exit to Proximity Caves 13249 | -4/Zhirov | Met Zhirov 13254 | -4/Zhirov | Learned location of Testing (-2) 13254 | -4/Zhirov | Learned location of Command (-1) 13260 | -4/Zhirov | Zhirov requested help retrieving the SGEMP Prototype 13313 | -4/Zhirov | Found Alien Artifact 13313 | -4/Zhirov | Identified Integrated Dissipator 13313 | -4/Zhirov | Installed Integrated Dissipator, increased core heat dissipation (+20) 13319 | -4/Zhirov | Found Alien Artifact 13339 | -4/Zhirov | Build established: Hacker-Ninja 13453 | -4/Zhirov | Entered Proximity Caves 13531 | -3/Proximity Caves | Spotted B-86 Titan 13802 | -3/Proximity Caves | Attracted the attention of an 0b10 checkpoint 13814 | -3/Proximity Caves | Discovered new exit (range 7) 13815 | -3/Proximity Caves | Identified exit to Research 13819 | -3/Proximity Caves | Entered Research 13819 | -3/Research | Evolved 2 slots: Propulsion x1, Utility x1 13820 | -3/Research | Loaded intel: 18 terminal locations 14382 | -3/Research | Found Gamma Bomb Array 14444 | -3/Research | Incoming assault squad redirected 14486 | -3/Research | Garrison activated, responded to threat 14600 | -3/Research | First assault squad dispatched 14650 | -3/Research | Identified exit to Quarantine 14650 | -3/Research | Identified exit to Research 14655 | -3/Research | Lost 3 parts (1n2u) 14667 | -3/Research | Incoming assault squad redirected 14686 | -3/Research | Entered another Research area 14686 | -2/Research | Warlord forces began assault on 0b10 14686 | -2/Research | Evolved 2 slots: Utility x2 14714 | -2/Research | Identified exit to Testing 14796 | -2/Research | Research machine network offline 14868 | -2/Research | Borebot progress halted 15005 | -2/Research | Spotted Executioner 15066 | -2/Research | Borebot progress halted 15088 | -2/Research | Spotted Striker 15099 | -2/Research | Met up with Warlord 15114 | -2/Research | Found Prototype Device 15114 | -2/Research | Identified Exp. Thermal Shield 15129 | -2/Research | Borebot progress halted 15184 | -2/Research | Spotted Executioner 15257 | -2/Research | Entered Testing 15258 | -2/Testing | Maximum security lockdown engaged 15490 | -2/Testing | Spotted Investigator 15493 | -2/Testing | Discovered new exit (range 22) 15508 | -2/Testing | Scanned by Researcher 15511 | -2/Testing | Identified Transdimensional Reconstructor 15511 | -2/Testing | Warped through subspace 15540 | -2/Testing | Lost 3 parts (3u) 15552 | -2/Testing | Spotted Striker 15558 | -2/Testing | Spotted Striker 15565 | -2/Testing | Crushed by falling debris 15566 | -2/Testing | System corruption reached 10% 15577 | -2/Testing | Crushed by falling debris 15580 | -2/Testing | Crushed by falling debris 15580 | -2/Testing | System corruption reached 30% 15580 | -2/Testing | Crushed by falling debris 15582 | -2/Testing | Entered Access 15582 | -1/Access | Evolved 2 slots: Utility x2 15612 | -1/Access | Lost 16 parts (4n10u2w) 15731 | -1/Access | Energy Cycler disabled 15832 | -1/Access | First assault squad dispatched 15885 | -1/Access | Build established: Scout 15892 | -1/Access | Discovered new exit (range 6) 15893 | -1/Access | Identified exit to Surface 15901 | *** | Escaped! Last Messages --------------- 15859_ Lgt. Quantum Reactor destroyed. 15860_ R-10 Processor collects Imp. Ion Engine. 15860_ K-01 Serf collects debris. 15873_ U-05 Engineer lays Concrete. 15880_ Door malfunctions. 15885_ Critical hit. 15885_ Com. HERF Cannon destroyed. 15885_ Penetrated by Slug. 15885_ U-05 Engineer destroyed. 15886_ C-30 ARC bursts open, deploying its payload. 15886_ G-73 Enforcer unfolds itself. 15886_ Lrn. Tractor Beam destroyed. 15886_ K-01 Serf collects debris. 15887_ P-80 Master resets G-73 Enforcer, system corruption cleaned. 15888_ Slug penetrates Wall. 15892_ The Access Shell folds into the floor. 15892_ EXIT=FOUND 15893_ EXIT=IDENTIFIED: SURFACE 15898_ Sealed Heavy Doors breached. [Achievement: I Think I Know What's Going On] Map ----- +----------------------------------------------------+ | ?????????????????????????????????????????????????? | | ?????????????????????????????????????????????????? | | ?????????????????????????????????????????????????? | | ?????????????????????????????????????????????????? | | ?????????????????????????????????????????????????? | | ?????????????????????????????????????????????????? | | ?????????????????????????????????????????????????? | | ?????????????????????????????????????????????????? | | ??????????? ????????????????????????????????????? | | ??????????# ????????????????????????????????????? | | ??????????# ????????????????????????????????????? | | ??????????# ????????????????????????????????????? | | ??????????# ????????????????????????????????????? | | ??????????# ????????????????????????????????????? | | ??????????# ????????????????????????????????????? | | ??????????# ????????????????????????????????????? | | ??????????# ????????????????????????????????????? | | ??????????# ????????????????????????????????????? | | ??????????# #?????###???????????????????????????? | | ??????????# ####### ##########??????????????????? | | ########### """T""" "??????????????????? | | ## """ """ "????BB????????????? | | ## "????BB????????????? | | " ## "??????????????????? | | """ ## "" "??????????????????? | | """## @" ""?????????????????? | | " ## "?????????????????? | | ## ""???BB????????????? | | ## pg "????BB????????????? | | ## p "??????????????????? | | ## g####### ##########??????????????????? | | ##pp#?????###???????????????????????????? | | ##pg#???????????????????????????????????? | | ## g#???????????????????????????????????? | | ###########Y #???????????????????????????????????? | | ?????????# #???????????????????????????????????? | | ?????????# #???#######?????????????????????????? | | ??????????# #?? " #?????????????????????????? | | ?????????## ##? """ #?????????????????????????? | | ########## # """ #?????????????????????????? | | !%!" # " #?????????????????????????? | | *"% = + #?????????????????????????? | | ######/### # #?????????????????????????? | | ## ## #?????????????????????????? | | ## #?? #?????????????????????????? | | """"" ## #?? #?????????????????????????? | | ""Y"" ## #???#######?????????????????????????? | | ## #???????????????????????????????????? | | ## ???????????????????????????????????? | | ## ???????????????????????????????????? | +----------------------------------------------------+ Best States ------------- Heat Dissipation 95 Energy Generation 38 Energy Capacity 2060 Matter Stores 300 Matter Capacity 800 Sight Range 23 Robot Scan Range 30 Terrain Scan Range 24 Terrain Scan Density 10 ECM Strength 3 Cloak Strength 3 Additional Mass Support 9 Armor Coverage 550 Propulsion Shielding 66 Phase Shifting 10 Evasion (%) 76 Recoil Reduction 2 Particle Charging 30 Stasis Canceling 2 Offensive Hacking 46 Defensive Hacking 20 Item Schematics ----------------- Hacking Suite | -8/Materials | Scanalyzed Imp. Light Armor Plating | -8/Materials | Scanalyzed Cld. VTOL Module | -6/Factory | Hacked Imp. System Shield | -6/Factory | Hacked Combat Drone Bay | -6/Data Miner | Free Lgt. Regenerative Plating | -6/Data Miner | Free Cmb. Gravmag System | -6/Data Miner | Free Exp. Sensor Array | -6/Data Miner | Free Exp. Targeting Computer | -6/Data Miner | Free Exp. Transmission Jammer | -6/Data Miner | Free Exp. ECM Suite | -6/Data Miner | Free Plasma Sword | -6/Data Miner | Free Kinetic Spear | -6/Data Miner | Free Adv. Weight Redist. System | -5/Factory | Scanalyzed Imp. Energy Well | -5/Factory | Scanalyzed Impulse Thruster Array | -5/Factory | Hacked Adv. Hacking Suite | -4/Factory | Hacked Exp. Signal Interpreter | -4/Factory | Hacked Assault Drone Bay | -4/Zhirov | Free Exp. Heat Sink | -4/Zhirov | Free Exp. Optical Array | -4/Zhirov | Free Imp. Arc Thrower | -4/Zhirov | Free Cld. Q-thruster | -3/Research | Hacked Centrium Light Armor Plating | -3/Research | Scanalyzed Diametric Drive | -3/Research | Scanalyzed Imp. Propulsion Shielding | -3/Research | Scanalyzed Lgt. Neutrino Core | -3/Research | Hacked Robot Schematics ------------------ M-28 Smith | -6/Factory | Hacked S-27 Virus | -6/Data Miner | Free G-50 Soldier | -6/Data Miner | Free G-67 Veteran | -6/Data Miner | Free L-41 Fighter | -6/Data Miner | Free X-72 Disruptor | -6/Data Miner | Free P-70 Sage | -6/Data Miner | Free I-36 Angel | -6/Data Miner | Free Fabricated ------------ T-07 Excavator | x1 | -7/Factory | Preloaded Hacking Suite | x1 | -7/Factory Hacking Suite | x1 | -7/Factory Hacking Suite | x1 | -7/Factory Hacking Suite | x1 | -7/Factory Cld. VTOL Module | x1 | -6/Factory Cld. VTOL Module | x1 | -6/Factory Cld. VTOL Module | x1 | -6/Factory Lgt. Regenerative Plating | x1 | -5/Factory M-28 Smith | x1 | -5/Factory Imp. Cloaking Device | x1 | -5/Factory | Preloaded Exp. Sensor Array | x1 | -4/Factory Exp. Signal Interpreter | x1 | -4/Factory Alien Tech Used ----------------- Integrated Dissipator Transdimensional Reconstructor Achievements -------------- Brute Force Cya! I Think I Know What's Going On Origins Subspace Traveler The Science Guy Whoosh! Challenges ------------ None Game ------ Seed HellfireRecoilWarhead Manual? 0 Play Time 07:40:00 Cumulative 90.8 hours Start 2021.11.12 @ 23:42:02 End 2021.11.16 @ 00:37:13 Sessions 4 Manual Loads 0 Difficulty Rogue Special Mode None Game No. 31 Rogue 31 Adventurer 0 Explorer 0 Win Type 0 Total 2 Types 2/0/0/0/0/0/0/0/0 Lore% 51 Gallery% 54 Achievement% 41 Wizard Run 0 Options --------- ASCII 0 Keyboard 1 Movement Numpad Keybinds 0 Fullscreen 1 Font 36/Smallcaps Map View 76x50 Tactical HUD 1 Map Filters NONE Filters NONE Steam 1 RUN: 33362ba3-a648-4e15-94ec-1a58b4e9b11a